fUST/lending_fUST_20250421
["ID","MTS","AMOUNT","RATE_DAILY","PERIOD"]
[358523866,1745231436362,-420.0,0.00020899,2]
[358523867,1745231436371,-6308.09450001,0.000209,3]
[358523868,1745231436381,-151.0,0.0002093,2]
[358523869,1745231436390,-3833.37,0.00020994,2]
[358523870,1745231436400,-157.33,0.00021,2]
[358523871,1745231436410,-420.0,0.00021,2]
[358523872,1745231436420,-600.0,0.00021016,2]
[358523873,1745231436429,-271.26,0.00021095,2]
[358523874,1745231436439,-500.0,0.00021095,2]
[358523875,1745231436448,-588.17,0.00021095,2]
[358523876,1745231436458,-500.0,0.00021095,2]
[358523877,1745231436468,-500.0,0.00021095,2]
[358523878,1745231436477,-3833.37,0.00021268,2]
[358523879,1745231436486,-500.0,0.00021369,2]
[358523880,1745231436496,-588.17,0.00021369,2]
[358523881,1745231436505,-500.0,0.00021369,2]
[358523882,1745231436515,-500.0,0.00021369,2]
[358523883,1745231436524,-151.0,0.00021478,2]
[358523884,1745231436534,-3833.37,0.00021542,2]
[358523885,1745231436544,-500.0,0.00021643,2]
[358523886,1745231436553,-588.17,0.00021643,2]
[358523887,1745231436562,-500.0,0.00021643,2]
[358523888,1745231436572,-406.34,0.00021643,2]
[358523889,1745231436582,-160.0,0.00021762,3]
[358523890,1745231436591,-6308.09449991,0.00021762,3]
[358523891,1745231436601,-3833.37,0.00021816,2]
[358523892,1745231436614,-500.0,0.00021917,2]
[358523893,1745231436624,-588.17,0.00021917,2]
[358523894,1745231436634,-500.0,0.00021917,2]
[358523895,1745231436644,-199.46563029,0.00021918,2]
[358523896,1745231436653,-420.65680271,0.00021933,2]
[358523897,1745231436663,-151.0,0.00022026,2]
[358523898,1745231436673,-3833.37,0.0002209,2]
[358523899,1745231436682,-195.74940693,0.00022191,2]
[358523900,1745231436692,-588.17,0.00022191,2]
[358523901,1745231436701,-500.0,0.00022191,2]
[358523902,1745231436711,-3833.37,0.00022364,2]
[358523903,1745231436720,-588.17,0.00022465,2]
[358523904,1745231436730,-500.0,0.00022465,2]
[358523905,1745231436739,-151.0,0.00022574,2]
[358523906,1745231436749,-500.0,0.00022623,2]
[358523907,1745231436758,-6308.09449991,0.00022624,4]
[358523908,1745231436767,-3833.37,0.00022638,2]
[358523909,1745231436777,-900.0,0.0002266,2]
[358523910,1745231436787,-7.15381688,0.00022739,2]
[358523938,1745231437942,-500.0,0.00019178,2]
[358523940,1745231437953,-502.81248578,0.00019178,2]
[358523943,1745231437963,-500.0,0.0001935,2]
[358523945,1745231437973,-500.0,0.0001935,2]
[358523947,1745231437983,-500.0,0.0001935,2]
[358523948,1745231437992,-500.0,0.0001935,2]
[358523951,1745231438002,-231.82507273,0.0001935,2]
[358523953,1745231438012,-581.01618312,0.00022739,2]
[358523955,1745231438021,-500.0,0.00022739,2]
[358523957,1745231438030,-587.0,0.00022776,2]
[358523959,1745231438040,-247.23993069,0.000228,2]
[358523961,1745231438050,-295.69690968,0.000229,2]
[358523963,1745231438060,-3833.37,0.00022912,2]
[358523965,1745231438069,-587.0,0.00022997,2]
[358523967,1745231438079,-160.0,0.00023,3]
[358523969,1745231438089,-588.17,0.00023013,2]
[358523971,1745231438099,-500.0,0.00023013,2]
[358523973,1745231438109,-151.0,0.00023122,2]
[358523974,1745231438119,-3833.37,0.00023186,2]
[358523976,1745231438128,-588.17,0.00023287,2]
[358523978,1745231438139,-500.0,0.00023287,2]
[358523980,1745231438148,-3833.37,0.0002346,2]
[358523982,1745231438157,-154.54723318,0.00023486,4]
[358523984,1745231438167,-6208.29364337,0.00023486,4]
[358523986,1745231438179,-99.80085654,0.00023486,4]
[358523988,1745231438189,-588.17,0.00023561,2]
[358523990,1745231438200,-500.0,0.00023561,2]
[358523992,1745231438209,-1233.31,0.000236,2]
[358523994,1745231438219,-151.0,0.0002367,2]
[358523996,1745231438235,-3833.37,0.00023734,2]
[358523998,1745231438245,-588.17,0.00023835,2]
[358524000,1745231438255,-500.0,0.00023835,2]
[358524002,1745231438265,-3157.17914346,0.00024008,2]
[358524179,1745231442943,-164.82662046,0.00020524,2]
[358524181,1745231442954,-676.19085654,0.00024008,2]
[358524183,1745231442964,-588.17,0.00024109,2]
[358524185,1745231442974,-500.0,0.00024109,2]
[358524187,1745231442983,-151.0,0.00024218,2]
[358524189,1745231442993,-153.0,0.00024219,2]
[358524191,1745231443003,-153.0,0.00024219,2]
[358524192,1745231443013,-153.0,0.00024219,2]
[358524195,1745231443023,-157.6546624,0.00024219,2]
[358524197,1745231443033,-153.0,0.00024219,2]
[358524199,1745231443043,-3833.37,0.00024282,2]
[358524201,1745231443054,-1200.0,0.00024304,2]
[358524203,1745231443064,-500.0,0.00024347,2]
[358524205,1745231443075,-4709.97897902,0.00024348,5]
[358524207,1745231443087,-1598.11552089,0.00024348,5]
[358524209,1745231443098,-588.17,0.00024383,2]
[358524212,1745231443107,-500.0,0.00024383,2]
[358524215,1745231443118,-2000.0,0.00024544,4]
[358524217,1745231443128,-3833.37,0.00024556,2]
[358524220,1745231443138,-8600.57007607,0.000246,2]
[358524223,1745231443162,-4718.37865605,0.000246,2]
[358524301,1745231445844,-500.0,0.00019178,2]
[358524302,1745231445854,-500.0,0.00019452,2]
[358524303,1745231445864,-405.21024413,0.00019726,2]
[358524304,1745231445873,-2822.93903707,0.000246,2]
[358524305,1745231446002,-382.748628,0.000246,2]
[358524307,1745232346070,474.26555245,0.00017,4]
[358524338,1745232632102,-159.7615506,0.00017703,2]
[358524339,1745232632112,-119.04524994,0.00018006,2]
[358524340,1745232632123,-47.40678186,0.00018006,2]
[358524341,1745232632133,-250.0,0.00018176,2]
[358524342,1745232632142,-249.09884627,0.00018207,2]
[358524343,1745232632154,-50.90115373,0.00018207,2]
[358524344,1745232632163,-300.0,0.00018207,2]
[358524345,1745232632172,-69.59182468,0.00018208,2]
[358524347,1745232632184,-24830.40817532,0.00018208,2]
[358524349,1745232632194,-166.61976,0.00018264,2]
[358524351,1745232632204,-818.06225187,0.00019073,2]
[358524353,1745232632213,-151.0,0.00019166,2]
[358524355,1745232632223,-500.0,0.00019173,2]
[358524357,1745232632232,-500.0,0.00019173,2]
[358524359,1745232632242,-500.0,0.00019173,2]
[358524361,1745232632251,-500.0,0.00019173,2]
[358524363,1745232632261,-500.0,0.00019173,2]
[358524365,1745232632271,-500.0,0.00019173,2]
[358524367,1745232632281,-500.0,0.00019173,2]
[358524369,1745232632291,-500.0,0.00019173,2]
[358524371,1745232632300,-500.0,0.00019173,2]
[358524373,1745232632309,-635.18991208,0.00019173,2]
[358524375,1745232632318,-500.0,0.00019173,2]
[358524377,1745232632327,-500.0,0.00019173,2]
[358524379,1745232632336,-297.0,0.00019177,2]
[358524381,1745232632346,-500.0,0.00019177,2]
[358524383,1745232632356,-249.58278811,0.00019177,2]
[358524385,1745232632365,-500.0,0.00019178,2]
[358524387,1745232632374,-500.0,0.00019178,2]
[358524389,1745232632384,-500.0,0.00019178,2]
[358524391,1745232632394,-506.33,0.00019178,2]
[358524393,1745232632404,-500.0,0.00019178,2]
[358524395,1745232632414,-500.0,0.00019178,2]
[358524397,1745232632424,-500.0,0.00019178,2]
[358524399,1745232632434,-500.0,0.00019178,2]
[358524401,1745232632444,-500.0,0.00019178,2]
[358524403,1745232632453,-500.0,0.00019178,2]
[358524405,1745232632463,-500.0,0.00019178,2]
[358524407,1745232632472,-500.0,0.00019178,2]
[358524409,1745232632482,-500.0,0.00019178,2]
[358524411,1745232632491,-500.0,0.00019178,2]
[358524413,1745232632501,-500.0,0.00019178,2]
[358524415,1745232632511,-500.0,0.00019178,2]
[358524417,1745232632520,-500.0,0.00019178,2]
[358524419,1745232632530,-500.0,0.00019178,2]
[358524421,1745232632540,-500.0,0.00019178,2]
[358524423,1745232632550,-500.0,0.00019178,2]
[358524425,1745232632559,-500.0,0.00019178,2]
[358524427,1745232632569,-448.02851767,0.00019178,2]
[358524429,1745232632578,-500.0,0.00019178,2]
[358524432,1745232632589,-500.0,0.00019178,2]
[358524434,1745232632604,-500.0,0.00019178,2]
[358524436,1745232632613,-500.0,0.00019178,2]
[358524438,1745232632623,-500.0,0.00019178,2]
[358524440,1745232632632,-500.0,0.00019178,2]
[358524442,1745232632642,-500.0,0.00019178,2]
[358524444,1745232632651,-500.0,0.00019178,2]
[358524446,1745232632660,-299.27218673,0.00019178,2]
[358524448,1745232632675,-200.72781327,0.00019178,2]
[358524450,1745232632685,-500.0,0.00019178,2]
[358524452,1745232632694,-145.85745643,0.00019178,2]
[358524455,1745232632706,-354.14254357,0.00019178,2]
[358524457,1745232632715,-500.0,0.00019178,2]
[358524459,1745232632724,-121.93653461,0.00019178,2]
[358524461,1745232632735,-361.61729165,0.00019178,2]
[358524463,1745232632746,-501.78727598,0.00019178,2]
[358524465,1745232632755,-46.50465818,0.00019178,2]
[358524731,1745232638051,-453.49534182,0.00019178,2]
[358524732,1745232638061,-500.0,0.00019178,2]
[358524733,1745232638071,-45.37415893,0.00019178,2]
[358524734,1745232638084,-454.62584107,0.00019178,2]
[358524735,1745232638093,-504.12152881,0.00019178,2]
[358524736,1745232638105,-503.14055566,0.00019178,2]
[358524737,1745232638115,-500.0,0.00019178,2]
[358524738,1745232638125,-500.0,0.00019178,2]
[358524739,1745232638135,-500.0,0.00019178,2]
[358524740,1745232638144,-500.0,0.00019178,2]
[358524741,1745232638154,-500.0,0.00019178,2]
[358524742,1745232638163,-500.0,0.00019178,2]
[358524743,1745232638175,-500.0,0.00019178,2]
[358524744,1745232638185,-500.0,0.00019178,2]
[358524745,1745232638194,-500.0,0.00019178,2]
[358524746,1745232638204,-500.0,0.00019178,2]
[358524747,1745232638213,-502.53121565,0.00019178,2]
[358524748,1745232638224,-500.0,0.00019178,2]
[358524749,1745232638233,-500.0,0.00019178,2]
[358524751,1745232638243,-500.0,0.00019178,2]
[358524753,1745232638252,-500.0,0.00019178,2]
[358524755,1745232638261,-500.0,0.00019178,2]
[358524757,1745232638270,-500.0,0.00019178,2]
[358524759,1745232638279,-500.0,0.00019178,2]
[358524761,1745232638288,-500.0,0.00019178,2]
[358524764,1745232638467,-500.0,0.00019178,2]
[358524765,1745232638478,-500.0,0.00019178,2]
[358524766,1745232638488,-500.0,0.00019178,2]
[358524767,1745232638498,-502.32125873,0.00019178,2]
[358524768,1745232638508,-500.0,0.00019178,2]
[358524769,1745232638517,-501.84421168,0.00019178,2]
[358524770,1745232638528,-500.0,0.00019178,2]
[358524771,1745232638538,-500.0,0.00019178,2]
[358524772,1745232638547,-500.0,0.00019178,2]
[358524773,1745232638556,-502.57659708,0.00019178,2]
[358524774,1745232638567,-500.0,0.00019178,2]
[358524775,1745232638577,-539.28,0.00019178,2]
[358524776,1745232638587,-500.0,0.00019178,2]
[358524777,1745232638596,-500.0,0.00019178,2]
[358524778,1745232638609,-500.0,0.00019178,2]
[358524779,1745232638618,-500.0,0.00019178,2]
[358524780,1745232638628,-500.0,0.00019178,2]
[358524781,1745232638638,-500.0,0.00019178,2]
[358524782,1745232638650,-500.0,0.00019178,2]
[358524783,1745232638660,-500.0,0.00019178,2]
[358524784,1745232638670,-500.0,0.00019178,2]
[358524785,1745232638681,-500.0,0.00019178,2]
[358524786,1745232638692,-500.0,0.00019178,2]
[358524787,1745232638703,-500.0,0.00019178,2]
[358524788,1745232638712,-500.0,0.00019178,2]
[358524789,1745232638721,-500.0,0.00019178,2]
[358524790,1745232638731,-500.0,0.00019178,2]
[358524791,1745232638740,-500.0,0.00019178,2]
[358524792,1745232638750,-443.88850134,0.00019178,2]
[358524793,1745232638764,-56.11149866,0.00019178,2]
[358524794,1745232638774,-562.3333515,0.00019178,2]
[358524795,1745232638783,-500.0,0.00019178,2]
[358524796,1745232638792,-500.0,0.00019178,2]
[358524797,1745232638802,-500.0,0.00019178,2]
[358524798,1745232638811,-240.55907775,0.00019178,2]
[358524799,1745232638822,-500.0,0.00019178,2]
[358524800,1745232638831,-500.0,0.00019178,2]
[358524801,1745232638841,-500.0,0.00019178,2]
[358524802,1745232638850,-500.0,0.00019178,2]
[358524803,1745232638859,-500.0,0.00019178,2]
[358524804,1745232638869,-500.0,0.00019178,2]
[358524805,1745232638878,-423.50549744,0.00019178,2]
[358524806,1745232638887,-500.0,0.00019178,2]
[358524807,1745232638896,-500.0,0.00019178,2]
[358524808,1745232638906,-500.0,0.00019178,2]
[358524809,1745232638915,-500.0,0.00019178,2]
[358524810,1745232638925,-500.0,0.00019178,2]
[358524811,1745232638934,-500.0,0.00019178,2]
[358524812,1745232638943,-500.0,0.00019178,2]
[358524813,1745232638952,-500.0,0.00019178,2]
[358524814,1745232638961,-500.0,0.00019178,2]
[358524815,1745232638971,-500.0,0.00019178,2]
[358524816,1745232638981,-500.0,0.00019178,2]
[358524817,1745232638990,-500.0,0.00019178,2]
[358524818,1745232639000,-500.0,0.00019178,2]
[358524819,1745232639009,-500.0,0.00019178,2]
[358524820,1745232639018,-500.0,0.00019178,2]
[358524821,1745232639028,-576.08,0.00019178,2]
[358524822,1745232639037,-500.0,0.00019178,2]
[358524823,1745232639047,-456.96923881,0.00019178,2]
[358524824,1745232639055,-1000.0,0.00019178,2]
[358524825,1745232639065,-500.0,0.00019178,2]
[358524826,1745232639074,-500.0,0.00019178,2]
[358524827,1745232639083,-500.0,0.00019178,2]
[358524828,1745232639092,-500.0,0.00019178,2]
[358524829,1745232639101,-503.98926482,0.00019178,2]
[358524830,1745232639111,-500.0,0.00019178,2]
[358524831,1745232639120,-500.0,0.00019178,2]
[358524832,1745232639129,-500.0,0.00019178,2]
[358524833,1745232639139,-593.02,0.00019178,2]
[358524834,1745232639147,-500.0,0.00019178,2]
[358524835,1745232639157,-500.0,0.00019178,2]
[358524836,1745232639166,-500.0,0.00019178,2]
[358524837,1745232639176,-500.0,0.00019178,2]
[358524838,1745232639184,-500.0,0.00019178,2]
[358524839,1745232639193,-500.0,0.00019178,2]
[358524840,1745232639202,-516.65,0.00019178,2]
[358524841,1745232639211,-500.0,0.00019178,2]
[358524842,1745232639221,-500.0,0.00019178,2]
[358524843,1745232639231,-500.0,0.00019178,2]
[358524844,1745232639241,-500.0,0.00019178,2]
[358524845,1745232639251,-527.73256221,0.00019178,2]
[358524846,1745232639261,-500.0,0.00019178,2]
[358524847,1745232639271,-500.0,0.00019178,2]
[358524848,1745232639280,-500.0,0.00019178,2]
[358524849,1745232639290,-500.0,0.00019178,2]
[358524850,1745232639300,-500.0,0.00019178,2]
[358524851,1745232639310,-500.0,0.00019178,2]
[358524852,1745232639320,-500.0,0.00019178,2]
[358524853,1745232639330,-500.0,0.00019178,2]
[358524854,1745232639341,-500.0,0.00019178,2]
[358524855,1745232639351,-500.0,0.00019178,2]
[358524856,1745232639361,-500.0,0.00019178,2]
[358524857,1745232639371,-500.0,0.00019178,2]
[358524858,1745232639382,-500.0,0.00019178,2]
[358524859,1745232639393,-500.0,0.00019178,2]
[358524860,1745232639402,-500.0,0.00019178,2]
[358524861,1745232639412,-500.0,0.00019178,2]
[358524862,1745232639422,-500.0,0.00019178,2]
[358524863,1745232639433,-500.0,0.00019178,2]
[358524864,1745232639443,-500.0,0.00019178,2]
[358524865,1745232639452,-500.0,0.00019178,2]
[358524866,1745232639462,-500.0,0.00019178,2]
[358524867,1745232639472,-500.0,0.00019178,2]
[358524869,1745232639482,-547.89,0.00019178,2]
[358524871,1745232639492,-590.67,0.00019178,2]
[358524873,1745232639502,-500.0,0.00019178,2]
[358524875,1745232639512,-618.31,0.00019178,2]
[358524876,1745232639521,-500.0,0.00019178,2]
[358524877,1745232639531,-500.0,0.00019178,2]
[358524878,1745232639542,-500.0,0.00019178,2]
[358524879,1745232639552,-579.54,0.00019178,2]
[358524880,1745232639562,-500.0,0.00019178,2]
[358524881,1745232639572,-500.0,0.00019178,2]
[358524882,1745232639581,-500.0,0.00019178,2]
[358524883,1745232639591,-500.0,0.00019178,2]
[358524884,1745232639606,-500.0,0.00019178,2]
[358524885,1745232639615,-500.0,0.00019178,2]
[358524886,1745232639625,-500.0,0.00019178,2]
[358524887,1745232639635,-500.0,0.00019178,2]
[358524888,1745232639646,-500.0,0.00019178,2]
[358524889,1745232639656,-622.21,0.00019178,2]
[358524890,1745232639666,-500.0,0.00019178,2]
[358524891,1745232639676,-500.0,0.00019178,2]
[358524892,1745232639687,-500.0,0.00019178,2]
[358524893,1745232639696,-500.0,0.00019178,2]
[358524894,1745232639706,-500.0,0.00019178,2]
[358524896,1745232639717,-500.0,0.00019178,2]
[358524897,1745232639727,-500.0,0.00019178,2]
[358524898,1745232639737,-500.0,0.00019178,2]
[358524899,1745232639747,-500.0,0.00019178,2]
[358524900,1745232639756,-500.0,0.00019178,2]
[358524901,1745232639767,-500.0,0.00019178,2]
[358524902,1745232639777,-520.06,0.00019178,2]
[358524903,1745232639787,-500.0,0.00019178,2]
[358524904,1745232639797,-500.0,0.00019178,2]
[358524905,1745232639808,-500.0,0.00019178,2]
[358524906,1745232639818,-500.0,0.00019178,2]
[358524907,1745232639827,-500.0,0.00019178,2]
[358524908,1745232639837,-500.0,0.00019178,2]
[358524909,1745232639846,-500.0,0.00019178,2]
[358524910,1745232639855,-500.0,0.00019178,2]
[358524911,1745232639864,-500.0,0.00019178,2]
[358524912,1745232639874,-500.0,0.00019178,2]
[358524913,1745232639883,-500.0,0.00019178,2]
[358524914,1745232639892,-500.0,0.00019178,2]
[358524915,1745232639902,-570.27,0.00019178,2]
[358524916,1745232639911,-500.0,0.00019178,2]
[358524917,1745232639920,-595.5,0.00019178,2]
[358524918,1745232639930,-500.0,0.00019178,2]
[358524919,1745232639939,-500.0,0.00019178,2]
[358524920,1745232639949,-500.0,0.00019178,2]
[358524921,1745232639958,-500.0,0.00019178,2]
[358524922,1745232639967,-500.0,0.00019178,2]
[358524923,1745232639976,-500.0,0.00019178,2]
[358524924,1745232639986,-586.78,0.00019178,2]
[358524926,1745232639995,-500.0,0.00019178,2]
[358524928,1745232640005,-500.0,0.00019178,2]
[358524929,1745232640014,-500.0,0.00019178,2]
[358524930,1745232640023,-500.0,0.00019178,2]
[358524931,1745232640033,-500.0,0.00019178,2]
[358524932,1745232640043,-163.68963412,0.00019178,2]
[358524933,1745232640053,-500.0,0.00019178,2]
[358524934,1745232640062,-500.0,0.00019178,2]
[358524935,1745232640071,-500.0,0.00019178,2]
[358524936,1745232640080,-500.0,0.00019178,2]
[358524937,1745232640089,-500.0,0.00019178,2]
[358524938,1745232640099,-500.0,0.00019178,2]
[358524939,1745232640108,-500.0,0.00019178,2]
[358524940,1745232640118,-500.0,0.00019178,2]
[358524941,1745232640127,-500.0,0.00019178,2]
[358524942,1745232640136,-500.0,0.00019178,2]
[358524943,1745232640146,-677.51,0.00019178,2]
[358524944,1745232640155,-500.0,0.00019178,2]
[358524945,1745232640164,-500.0,0.00019178,2]
[358524946,1745232640173,-500.0,0.00019178,2]
[358524947,1745232640182,-500.0,0.00019178,2]
[358524948,1745232640192,-500.0,0.00019178,2]
[358524949,1745232640202,-532.05,0.00019178,2]
[358524951,1745232640212,-500.0,0.00019178,2]
[358524952,1745232640221,-500.0,0.00019178,2]
[358524953,1745232640231,-500.0,0.00019178,2]
[358524954,1745232640240,-500.0,0.00019178,2]
[358524955,1745232640250,-500.0,0.00019178,2]
[358524956,1745232640259,-500.0,0.00019178,2]
[358524958,1745232640269,-500.0,0.00019178,2]
[358524960,1745232640278,-500.0,0.00019178,2]
[358524961,1745232640288,-500.0,0.00019178,2]
[358524962,1745232640297,-500.0,0.00019178,2]
[358524963,1745232640306,-500.0,0.00019178,2]
[358524964,1745232640316,-500.0,0.00019178,2]
[358524965,1745232640325,-500.0,0.00019178,2]
[358524966,1745232640340,-500.0,0.00019178,2]
[358524967,1745232640349,-500.0,0.00019178,2]
[358524968,1745232640358,-500.0,0.00019178,2]
[358524969,1745232640367,-500.0,0.00019178,2]
[358524970,1745232640376,-500.0,0.00019178,2]
[358524971,1745232640386,-500.0,0.00019178,2]
[358524972,1745232640395,-500.0,0.00019178,2]
[358524973,1745232640405,-500.0,0.00019178,2]
[358524974,1745232640415,-500.0,0.00019178,2]
[358524975,1745232640425,-500.0,0.00019178,2]
[358524976,1745232640434,-500.0,0.00019178,2]
[358524977,1745232640444,-500.0,0.00019178,2]
[358524978,1745232640453,-500.0,0.00019178,2]
[358524979,1745232640463,-581.48,0.00019178,2]
[358524980,1745232640472,-500.0,0.00019178,2]
[358524983,1745232640484,-500.0,0.00019178,2]
[358524984,1745232640494,-500.0,0.00019178,2]
[358524985,1745232640504,-500.0,0.00019178,2]
[358524987,1745232640514,-645.55,0.00019178,2]
[358524989,1745232640523,-500.0,0.00019178,2]
[358524990,1745232640532,-579.33,0.00019178,2]
[358524991,1745232640541,-230.37975829,0.00019178,2]
[358524992,1745232640551,-500.0,0.00019178,2]
[358524993,1745232640560,-500.0,0.00019178,2]
[358524994,1745232640570,-533.47,0.00019178,2]
[358524995,1745232640580,-500.0,0.00019178,2]
[358524996,1745232640589,-500.0,0.00019178,2]
[358524997,1745232640600,-500.0,0.00019178,2]
[358524998,1745232640610,-500.0,0.00019178,2]
[358524999,1745232640619,-500.0,0.00019178,2]
[358525000,1745232640629,-500.0,0.00019178,2]
[358525001,1745232640639,-520.71,0.00019178,2]
[358525002,1745232640650,-500.0,0.00019178,2]
[358525003,1745232640661,-500.0,0.00019178,2]
[358525004,1745232640675,-300.0,0.00019178,2]
[358525005,1745232640686,-211.75958744,0.0001935,2]
[358525006,1745232640696,-535.71539511,0.0001935,2]
[358525007,1745232640706,-500.0,0.0001935,2]
[358525008,1745232640715,-500.0,0.0001935,2]
[358525009,1745232640725,-500.0,0.0001935,2]
[358525010,1745232640735,-293.60493903,0.0001935,2]
[358525011,1745232640745,-573.68518823,0.0001935,2]
[358525012,1745232640755,-500.0,0.00019452,2]
[358525013,1745232640764,-500.0,0.00019452,2]
[358525014,1745232640774,-554.67685672,0.00019452,2]
[358525015,1745232640783,-500.0,0.00019452,2]
[358525016,1745232640793,-500.0,0.00019452,2]
[358525017,1745232640803,-500.0,0.00019452,2]
[358525018,1745232640812,-500.0,0.00019452,2]
[358525019,1745232640820,-500.0,0.00019452,2]
[358525020,1745232640829,-500.0,0.00019452,2]
[358525021,1745232640839,-500.0,0.00019452,2]
[358525022,1745232640849,-500.0,0.00019452,2]
[358525023,1745232640858,-500.0,0.00019452,2]
[358525024,1745232640867,-500.0,0.00019452,2]
[358525025,1745232640877,-500.0,0.00019452,2]
[358525026,1745232640886,-500.0,0.00019452,2]
[358525027,1745232640896,-500.0,0.00019452,2]
[358525028,1745232640906,-500.0,0.00019452,2]
[358525029,1745232640915,-500.0,0.00019452,2]
[358525030,1745232640925,-619.99,0.00019452,2]
[358525031,1745232640934,-633.08,0.00019452,2]
[358525032,1745232640944,-162.96,0.00019452,2]
[358525033,1745232640954,-591.27,0.00019452,2]
[358525034,1745232640963,-354.57,0.00019452,2]
[358525035,1745232640973,-500.0,0.00019452,2]
[358525036,1745232640982,-500.0,0.00019452,2]
[358525037,1745232640992,-383.95,0.00019452,2]
[358525038,1745232641001,-497.82,0.00019452,2]
[358525039,1745232641010,-446.96,0.00019452,2]
[358525040,1745232641019,-165.52,0.00019452,2]
[358525041,1745232641029,-500.0,0.00019452,2]
[358525042,1745232641038,-487.59,0.00019452,2]
[358525043,1745232641047,-193.76,0.00019452,2]
[358525044,1745232641057,-400.1,0.00019452,2]
[358525045,1745232641066,-500.0,0.00019452,2]
[358525046,1745232641075,-500.0,0.00019452,2]
[358525047,1745232641090,-500.0,0.00019452,2]
[358525048,1745232641100,-500.0,0.00019452,2]
[358525049,1745232641110,-187.75,0.00019452,2]
[358525050,1745232641119,-543.2,0.00019452,2]
[358525051,1745232641128,-500.0,0.00019452,2]
[358525052,1745232641137,-367.26,0.00019452,2]
[358525053,1745232641147,-500.0,0.00019452,2]
[358525054,1745232641156,-291.67,0.00019452,2]
[358525055,1745232641165,-500.0,0.00019452,2]
[358525056,1745232641175,-246.49,0.00019452,2]
[358525057,1745232641184,-572.19,0.00019452,2]
[358525058,1745232641194,-500.0,0.00019452,2]
[358525059,1745232641203,-299.35,0.00019452,2]
[358525060,1745232641213,-376.51,0.00019452,2]
[358525061,1745232641224,-677.51,0.00019452,2]
[358525062,1745232641235,-500.0,0.00019452,2]
[358525063,1745232641244,-500.0,0.00019452,2]
[358525064,1745232641253,-180.55,0.00019452,2]
[358525065,1745232641263,-500.0,0.00019452,2]
[358525066,1745232641272,-317.24,0.00019452,2]
[358525067,1745232641282,-349.91,0.00019452,2]
[358525068,1745232641292,-500.0,0.00019452,2]
[358525069,1745232641302,-163.65,0.00019452,2]
[358525070,1745232641311,-491.28,0.00019452,2]
[358525071,1745232641321,-259.95,0.00019452,2]
[358525072,1745232641331,-604.92,0.00019452,2]
[358525073,1745232641341,-361.39,0.00019452,2]
[358525074,1745232641351,-16.93738518,0.00019452,2]
[358525075,1745232641366,-325.28039729,0.00019452,2]
[358525076,1745232641375,-155.23386325,0.00019473,2]
[358525077,1745232641387,-344.76613675,0.00019473,2]
[358525078,1745232641396,-500.0,0.00019473,2]
[358525079,1745232641405,-420.73,0.00019726,2]
[358525080,1745232641415,-239.69,0.00019726,2]